Workbook

Sheet Budget matrimonio
B2: MARTINA e LUCA ANNUNCIANO IL LORO MATRIMONIO
B5: CATEGORIA | C5: COSTO STIMATO | D5: COSTO EFFETTIVO | E5: VARIANZA | F5: % DEL BUDGET | J5: Non ordinate | K5: Costi stimati | L5: Costi effettivi | M5: Spesa stimata - Posizione | N5: Posizione | O5: # | P5: Ordinate
B6: =P6 -> Ricevimento nuziale | C6: =VLOOKUP(TBL_Riepilogo[[#This Row],[CATEGORIA]],TBL_ClassificazioneDati,2,FALSE) -> € 14,500 | D6: =IF(VLOOKUP(TBL_Riepilogo[[#This Row],[CATEGORIA]],TBL_ClassificazioneDati,3,FALSE)=0,"",VLOOKUP(TBL_Riepilogo[[#This Row],[CATEGORIA]],TBL_ClassificazioneDati,3,FALSE)) -> € 12,800 | E6: =IF(OR(TBL_Riepilogo[[#This Row],[COSTO STIMATO]]="",TBL_Riepilogo[[#This Row],[COSTO EFFETTIVO]]=""),"",TBL_Riepilogo[[#This Row],[COSTO STIMATO]]-TBL_Riepilogo[[#This Row],[COSTO EFFETTIVO]]) -> € 1,700 | F6: =TBL_Riepilogo[[#This Row],[COSTO STIMATO]]/SUM(TBL_Riepilogo[COSTO STIMATO]) -> 48.7% | J6: Ricevimento nuziale | K6: =TBL_Ricevimento[[#Totals],[STIMATI]] -> 14500 | L6: =TBL_Ricevimento[[#Totals],[EFFETTIVI]] -> 12800 | M6: =K6-O6/100 -> 14499.99 | N6: =_xlfn.RANK.AVG(M6,$M$6:$M$15) -> 1 | O6: 1 | P6: =INDEX(TBL_ClassificazioneDati,MATCH(O6,$N$6:$N$15,0),1) -> Ricevimento nuziale
B7: =P7 -> Abbigliamento | C7: =VLOOKUP(TBL_Riepilogo[[#This Row],[CATEGORIA]],TBL_ClassificazioneDati,2,FALSE) -> € 4,000 | D7: =IF(VLOOKUP(TBL_Riepilogo[[#This Row],[CATEGORIA]],TBL_ClassificazioneDati,3,FALSE)=0,"",VLOOKUP(TBL_Riepilogo[[#This Row],[CATEGORIA]],TBL_ClassificazioneDati,3,FALSE)) -> € 2,900 | E7: =IF(OR(TBL_Riepilogo[[#This Row],[COSTO STIMATO]]="",TBL_Riepilogo[[#This Row],[COSTO EFFETTIVO]]=""),"",TBL_Riepilogo[[#This Row],[COSTO STIMATO]]-TBL_Riepilogo[[#This Row],[COSTO EFFETTIVO]]) -> € 1,100 | F7: =TBL_Riepilogo[[#This Row],[COSTO STIMATO]]/SUM(TBL_Riepilogo[COSTO STIMATO]) -> 13.4% | J7: Abbigliamento | K7: =TBL_Abbigliamento[[#Totals],[STIMATI]] -> 4000 | L7: =TBL_Abbigliamento[[#Totals],[EFFETTIVI]] -> 2900 | M7: =K7-O7/100 -> 3999.98 | N7: 2 | O7: 2 | P7: Abbigliamento
B8: Fiori e decorazioni | C8: =VLOOKUP(TBL_Riepilogo[[#This Row],[CATEGORIA]],TBL_ClassificazioneDati,2,FALSE) -> € 3,000 | D8: =IF(VLOOKUP(TBL_Riepilogo[[#This Row],[CATEGORIA]],TBL_ClassificazioneDati,3,FALSE)=0,"",VLOOKUP(TBL_Riepilogo[[#This Row],[CATEGORIA]],TBL_ClassificazioneDati,3,FALSE)) ->  | E8: =IF(OR(TBL_Riepilogo[[#This Row],[COSTO STIMATO]]="",TBL_Riepilogo[[#This Row],[COSTO EFFETTIVO]]=""),"",TBL_Riepilogo[[#This Row],[COSTO STIMATO]]-TBL_Riepilogo[[#This Row],[COSTO EFFETTIVO]]) ->  | F8: =TBL_Riepilogo[[#This Row],[COSTO STIMATO]]/SUM(TBL_Riepilogo[COSTO STIMATO]) -> 10.1% | J8: Fiori e decorazioni | K8: =TBL_FioriDecorazioni[[#Totals],[STIMATI]] -> 3000 | L8: =TBL_FioriDecorazioni[[#Totals],[EFFETTIVI]] -> 0 | M8: 2999.97 | N8: 3 | O8: 3 | P8: Fiori e decorazioni
B9: Foto e video | C9: =VLOOKUP(TBL_Riepilogo[[#This Row],[CATEGORIA]],TBL_ClassificazioneDati,2,FALSE) -> € 2,500 | D9: =IF(VLOOKUP(TBL_Riepilogo[[#This Row],[CATEGORIA]],TBL_ClassificazioneDati,3,FALSE)=0,"",VLOOKUP(TBL_Riepilogo[[#This Row],[CATEGORIA]],TBL_ClassificazioneDati,3,FALSE)) ->  | E9: =IF(OR(TBL_Riepilogo[[#This Row],[COSTO STIMATO]]="",TBL_Riepilogo[[#This Row],[COSTO EFFETTIVO]]=""),"",TBL_Riepilogo[[#This Row],[COSTO STIMATO]]-TBL_Riepilogo[[#This Row],[COSTO EFFETTIVO]]) ->  | F9: =TBL_Riepilogo[[#This Row],[COSTO STIMATO]]/SUM(TBL_Riepilogo[COSTO STIMATO]) -> 8.4% | J9: Musica | K9: =TBL_Musica[[#Totals],[STIMATI]] -> 1800 | L9: =TBL_Musica[[#Totals],[EFFETTIVI]] -> 0 | M9: 1799.96 | N9: 5 | O9: 4 | P9: Foto e video
B10: Musica | C10: =VLOOKUP(TBL_Riepilogo[[#This Row],[CATEGORIA]],TBL_ClassificazioneDati,2,FALSE) -> € 1,800 | D10: =IF(VLOOKUP(TBL_Riepilogo[[#This Row],[CATEGORIA]],TBL_ClassificazioneDati,3,FALSE)=0,"",VLOOKUP(TBL_Riepilogo[[#This Row],[CATEGORIA]],TBL_ClassificazioneDati,3,FALSE)) ->  | E10: =IF(OR(TBL_Riepilogo[[#This Row],[COSTO STIMATO]]="",TBL_Riepilogo[[#This Row],[COSTO EFFETTIVO]]=""),"",TBL_Riepilogo[[#This Row],[COSTO STIMATO]]-TBL_Riepilogo[[#This Row],[COSTO EFFETTIVO]]) ->  | F10: =TBL_Riepilogo[[#This Row],[COSTO STIMATO]]/SUM(TBL_Riepilogo[COSTO STIMATO]) -> 6.1% | J10: Foto e video | K10: =TBL_FotografieVideo[[#Totals],[STIMATI]] -> 2500 | L10: =TBL_FotografieVideo[[#Totals],[EFFETTIVI]] -> 0 | M10: 2499.95 | N10: 4 | O10: 5 | P10: Musica
B11: Bomboniere e regali | C11: =VLOOKUP(TBL_Riepilogo[[#This Row],[CATEGORIA]],TBL_ClassificazioneDati,2,FALSE) -> € 1,100 | D11: =IF(VLOOKUP(TBL_Riepilogo[[#This Row],[CATEGORIA]],TBL_ClassificazioneDati,3,FALSE)=0,"",VLOOKUP(TBL_Riepilogo[[#This Row],[CATEGORIA]],TBL_ClassificazioneDati,3,FALSE)) ->  | E11: =IF(OR(TBL_Riepilogo[[#This Row],[COSTO STIMATO]]="",TBL_Riepilogo[[#This Row],[COSTO EFFETTIVO]]=""),"",TBL_Riepilogo[[#This Row],[COSTO STIMATO]]-TBL_Riepilogo[[#This Row],[COSTO EFFETTIVO]]) ->  | F11: =TBL_Riepilogo[[#This Row],[COSTO STIMATO]]/SUM(TBL_Riepilogo[COSTO STIMATO]) -> 3.7% | J11: Bomboniere e regali | K11: =TBL_BomboniereRegali[[#Totals],[STIMATI]] -> 1100 | L11: =TBL_BomboniereRegali[[#Totals],[EFFETTIVI]] -> 0 | M11: 1099.94 | N11: 6 | O11: 6 | P11: Bomboniere e regali
B12: =P12 -> Fedi nuziali | C12: =VLOOKUP(TBL_Riepilogo[[#This Row],[CATEGORIA]],TBL_ClassificazioneDati,2,FALSE) -> € 1,100 | D12: =IF(VLOOKUP(TBL_Riepilogo[[#This Row],[CATEGORIA]],TBL_ClassificazioneDati,3,FALSE)=0,"",VLOOKUP(TBL_Riepilogo[[#This Row],[CATEGORIA]],TBL_ClassificazioneDati,3,FALSE)) ->  | E12: =IF(OR(TBL_Riepilogo[[#This Row],[COSTO STIMATO]]="",TBL_Riepilogo[[#This Row],[COSTO EFFETTIVO]]=""),"",TBL_Riepilogo[[#This Row],[COSTO STIMATO]]-TBL_Riepilogo[[#This Row],[COSTO EFFETTIVO]]) ->  | F12: =TBL_Riepilogo[[#This Row],[COSTO STIMATO]]/SUM(TBL_Riepilogo[COSTO STIMATO]) -> 3.7% | J12: Cerimonia | K12: =TBL_Cerimonia[[#Totals],[STIMATI]] -> 800 | L12: =TBL_Cerimonia[[#Totals],[EFFETTIVI]] -> 0 | M12: 799.93 | N12: 8 | O12: 7 | P12: Fedi nuziali
B13: Cerimonia | C13: =VLOOKUP(TBL_Riepilogo[[#This Row],[CATEGORIA]],TBL_ClassificazioneDati,2,FALSE) -> € 800 | D13: =IF(VLOOKUP(TBL_Riepilogo[[#This Row],[CATEGORIA]],TBL_ClassificazioneDati,3,FALSE)=0,"",VLOOKUP(TBL_Riepilogo[[#This Row],[CATEGORIA]],TBL_ClassificazioneDati,3,FALSE)) ->  | E13: =IF(OR(TBL_Riepilogo[[#This Row],[COSTO STIMATO]]="",TBL_Riepilogo[[#This Row],[COSTO EFFETTIVO]]=""),"",TBL_Riepilogo[[#This Row],[COSTO STIMATO]]-TBL_Riepilogo[[#This Row],[COSTO EFFETTIVO]]) ->  | F13: =TBL_Riepilogo[[#This Row],[COSTO STIMATO]]/SUM(TBL_Riepilogo[COSTO STIMATO]) -> 2.7% | J13: Cancelleria | K13: =TBL_Elementi_decorativi[[#Totals],[STIMATI]] -> 500 | L13: =TBL_Elementi_decorativi[[#Totals],[EFFETTIVI]] -> 0 | M13: 499.92 | N13: 9 | O13: 8 | P13: Cerimonia
B14: Cancelleria | C14: =VLOOKUP(TBL_Riepilogo[[#This Row],[CATEGORIA]],TBL_ClassificazioneDati,2,FALSE) -> € 500 | D14: =IF(VLOOKUP(TBL_Riepilogo[[#This Row],[CATEGORIA]],TBL_ClassificazioneDati,3,FALSE)=0,"",VLOOKUP(TBL_Riepilogo[[#This Row],[CATEGORIA]],TBL_ClassificazioneDati,3,FALSE)) ->  | E14: =IF(OR(TBL_Riepilogo[[#This Row],[COSTO STIMATO]]="",TBL_Riepilogo[[#This Row],[COSTO EFFETTIVO]]=""),"",TBL_Riepilogo[[#This Row],[COSTO STIMATO]]-TBL_Riepilogo[[#This Row],[COSTO EFFETTIVO]]) ->  | F14: =TBL_Riepilogo[[#This Row],[COSTO STIMATO]]/SUM(TBL_Riepilogo[COSTO STIMATO]) -> 1.7% | J14: Fedi nuziali | K14: =TBL_FediNuziali[[#Totals],[STIMATI]] -> 1100 | L14: =TBL_FediNuziali[[#Totals],[EFFETTIVI]] -> 0 | M14: 1099.91 | N14: 7 | O14: 9 | P14: Cancelleria
B15: Trasporti | C15: =VLOOKUP(TBL_Riepilogo[[#This Row],[CATEGORIA]],TBL_ClassificazioneDati,2,FALSE) -> € 450 | D15: =IF(VLOOKUP(TBL_Riepilogo[[#This Row],[CATEGORIA]],TBL_ClassificazioneDati,3,FALSE)=0,"",VLOOKUP(TBL_Riepilogo[[#This Row],[CATEGORIA]],TBL_ClassificazioneDati,3,FALSE)) ->  | E15: =IF(OR(TBL_Riepilogo[[#This Row],[COSTO STIMATO]]="",TBL_Riepilogo[[#This Row],[COSTO EFFETTIVO]]=""),"",TBL_Riepilogo[[#This Row],[COSTO STIMATO]]-TBL_Riepilogo[[#This Row],[COSTO EFFETTIVO]]) ->  | F15: =TBL_Riepilogo[[#This Row],[COSTO STIMATO]]/SUM(TBL_Riepilogo[COSTO STIMATO]) -> 1.5% | J15: Trasporti | K15: =TBL_Trasporti[[#Totals],[STIMATI]] -> 450 | L15: =TBL_Trasporti[[#Totals],[EFFETTIVI]] -> 0 | M15: 449.9 | N15: 10 | O15: 10 | P15: Trasporti
B16: Totale | C16: =SUBTOTAL(109,TBL_Riepilogo[COSTO STIMATO]) -> € 29,750 | D16: =SUBTOTAL(109,TBL_Riepilogo[COSTO EFFETTIVO]) -> € 15,700 | E16: =TBL_Riepilogo[[#Totals],[COSTO STIMATO]]-TBL_Riepilogo[[#Totals],[COSTO EFFETTIVO]] -> € 14,050 | F16: =SUBTOTAL(109,TBL_Riepilogo[% DEL BUDGET]) -> 100%

Sheet Dettagli budget
B2: DETTAGLI BUDGET
B4: RICEVIMENTO NUZIALE | C4: STIMATI | D4: EFFETTIVI | E4: VARIANZA
B5: Sede e noleggi | C5: € 8,000.00 | D5: € 7,800.00 | E5: =IF(OR(TBL_Ricevimento[[#This Row],[STIMATI]]="",TBL_Ricevimento[[#This Row],[EFFETTIVI]]=""),"",TBL_Ricevimento[[#This Row],[STIMATI]]-TBL_Ricevimento[[#This Row],[EFFETTIVI]]) -> € 200.00
B6: Cibo e servizi | C6: € 4,000.00 | D6: € 4,200.00 | E6: =IF(OR(TBL_Ricevimento[[#This Row],[STIMATI]]="",TBL_Ricevimento[[#This Row],[EFFETTIVI]]=""),"",TBL_Ricevimento[[#This Row],[STIMATI]]-TBL_Ricevimento[[#This Row],[EFFETTIVI]]) -> -€ 200.00
B7: Bevande | C7: € 1,000.00 | D7: € 800.00 | E7: =IF(OR(TBL_Ricevimento[[#This Row],[STIMATI]]="",TBL_Ricevimento[[#This Row],[EFFETTIVI]]=""),"",TBL_Ricevimento[[#This Row],[STIMATI]]-TBL_Ricevimento[[#This Row],[EFFETTIVI]]) -> € 200.00
B8: Torta | C8: € 1,000.00 | E8: =IF(OR(TBL_Ricevimento[[#This Row],[STIMATI]]="",TBL_Ricevimento[[#This Row],[EFFETTIVI]]=""),"",TBL_Ricevimento[[#This Row],[STIMATI]]-TBL_Ricevimento[[#This Row],[EFFETTIVI]]) -> 
B9: Spese varie | C9: € 500.00 | E9: =IF(OR(TBL_Ricevimento[[#This Row],[STIMATI]]="",TBL_Ricevimento[[#This Row],[EFFETTIVI]]=""),"",TBL_Ricevimento[[#This Row],[STIMATI]]-TBL_Ricevimento[[#This Row],[EFFETTIVI]]) -> 
B10: TOTALE RICEVIMENTO NUZIALE | C10: =SUBTOTAL(109,TBL_Ricevimento[STIMATI]) -> € 14,500.00 | D10: =SUBTOTAL(109,TBL_Ricevimento[EFFETTIVI]) -> € 12,800.00 | E10: =TBL_Ricevimento[[#Totals],[STIMATI]]-TBL_Ricevimento[[#Totals],[EFFETTIVI]] -> € 1,700.00
B13: ABBIGLIAMENTO | C13: STIMATI | D13: EFFETTIVI | E13: VARIANZA
B14: Smoking, completi e/o abiti | C14: € 3,000.00 | D14: € 2,900.00 | E14: =IF(OR(TBL_Abbigliamento[[#This Row],[STIMATI]]="",TBL_Abbigliamento[[#This Row],[EFFETTIVI]]=""),"",TBL_Abbigliamento[[#This Row],[STIMATI]]-TBL_Abbigliamento[[#This Row],[EFFETTIVI]]) -> € 100.00
B15: Modifiche | C15: € 100.00 | E15: =IF(OR(TBL_Abbigliamento[[#This Row],[STIMATI]]="",TBL_Abbigliamento[[#This Row],[EFFETTIVI]]=""),"",TBL_Abbigliamento[[#This Row],[STIMATI]]-TBL_Abbigliamento[[#This Row],[EFFETTIVI]]) -> 
B16: Copricapo e velo | C16: € 200.00 | E16: =IF(OR(TBL_Abbigliamento[[#This Row],[STIMATI]]="",TBL_Abbigliamento[[#This Row],[EFFETTIVI]]=""),"",TBL_Abbigliamento[[#This Row],[STIMATI]]-TBL_Abbigliamento[[#This Row],[EFFETTIVI]]) -> 
B17: Accessori | C17: € 100.00 | E17: =IF(OR(TBL_Abbigliamento[[#This Row],[STIMATI]]="",TBL_Abbigliamento[[#This Row],[EFFETTIVI]]=""),"",TBL_Abbigliamento[[#This Row],[STIMATI]]-TBL_Abbigliamento[[#This Row],[EFFETTIVI]]) -> 
B18: Acconciatura e makeup | C18: € 500.00 | E18: =IF(OR(TBL_Abbigliamento[[#This Row],[STIMATI]]="",TBL_Abbigliamento[[#This Row],[EFFETTIVI]]=""),"",TBL_Abbigliamento[[#This Row],[STIMATI]]-TBL_Abbigliamento[[#This Row],[EFFETTIVI]]) -> 
B19: Spese varie | C19: € 100.00 | E19: =IF(OR(TBL_Abbigliamento[[#This Row],[STIMATI]]="",TBL_Abbigliamento[[#This Row],[EFFETTIVI]]=""),"",TBL_Abbigliamento[[#This Row],[STIMATI]]-TBL_Abbigliamento[[#This Row],[EFFETTIVI]]) -> 
B20: TOTALE ABBIGLIAMENTO | C20: =SUBTOTAL(109,TBL_Abbigliamento[STIMATI]) -> € 4,000.00 | D20: =SUBTOTAL(109,TBL_Abbigliamento[EFFETTIVI]) -> € 2,900.00 | E20: =TBL_Abbigliamento[[#Totals],[STIMATI]]-TBL_Abbigliamento[[#Totals],[EFFETTIVI]] -> € 1,100.00
B23: FIORI E DECORAZIONI | C23: STIMATI | D23: EFFETTIVI | E23: VARIANZA
B24: Addobbi floreali per cerimonia | C24: € 1,000.00 | E24: =IF(OR(TBL_FioriDecorazioni[[#This Row],[STIMATI]]="",TBL_FioriDecorazioni[[#This Row],[EFFETTIVI]]=""),"",TBL_FioriDecorazioni[[#This Row],[STIMATI]]-TBL_FioriDecorazioni[[#This Row],[EFFETTIVI]]) -> 
B25: Boccioli e cestino di Flower Girl | C25: € 500.00 | E25: =IF(OR(TBL_FioriDecorazioni[[#This Row],[STIMATI]]="",TBL_FioriDecorazioni[[#This Row],[EFFETTIVI]]=""),"",TBL_FioriDecorazioni[[#This Row],[STIMATI]]-TBL_FioriDecorazioni[[#This Row],[EFFETTIVI]]) -> 
B26: Cuscino tondo | C26: € 100.00 | E26: =IF(OR(TBL_FioriDecorazioni[[#This Row],[STIMATI]]="",TBL_FioriDecorazioni[[#This Row],[EFFETTIVI]]=""),"",TBL_FioriDecorazioni[[#This Row],[STIMATI]]-TBL_FioriDecorazioni[[#This Row],[EFFETTIVI]]) -> 
B27: Bouquet | C27: € 500.00 | E27: =IF(OR(TBL_FioriDecorazioni[[#This Row],[STIMATI]]="",TBL_FioriDecorazioni[[#This Row],[EFFETTIVI]]=""),"",TBL_FioriDecorazioni[[#This Row],[STIMATI]]-TBL_FioriDecorazioni[[#This Row],[EFFETTIVI]]) -> 
B28: Boutonnière | C28: € 100.00 | E28: =IF(OR(TBL_FioriDecorazioni[[#This Row],[STIMATI]]="",TBL_FioriDecorazioni[[#This Row],[EFFETTIVI]]=""),"",TBL_FioriDecorazioni[[#This Row],[STIMATI]]-TBL_FioriDecorazioni[[#This Row],[EFFETTIVI]]) -> 
B29: Corsage | C29: € 200.00 | E29: =IF(OR(TBL_FioriDecorazioni[[#This Row],[STIMATI]]="",TBL_FioriDecorazioni[[#This Row],[EFFETTIVI]]=""),"",TBL_FioriDecorazioni[[#This Row],[STIMATI]]-TBL_FioriDecorazioni[[#This Row],[EFFETTIVI]]) -> 
B30: Decorazioni per il ricevimento nuziale | C30: € 300.00 | E30: =IF(OR(TBL_FioriDecorazioni[[#This Row],[STIMATI]]="",TBL_FioriDecorazioni[[#This Row],[EFFETTIVI]]=""),"",TBL_FioriDecorazioni[[#This Row],[STIMATI]]-TBL_FioriDecorazioni[[#This Row],[EFFETTIVI]]) -> 
B31: Illuminazione | C31: € 200.00 | E31: =IF(OR(TBL_FioriDecorazioni[[#This Row],[STIMATI]]="",TBL_FioriDecorazioni[[#This Row],[EFFETTIVI]]=""),"",TBL_FioriDecorazioni[[#This Row],[STIMATI]]-TBL_FioriDecorazioni[[#This Row],[EFFETTIVI]]) -> 
B32: Spese varie | C32: € 100.00 | E32: =IF(OR(TBL_FioriDecorazioni[[#This Row],[STIMATI]]="",TBL_FioriDecorazioni[[#This Row],[EFFETTIVI]]=""),"",TBL_FioriDecorazioni[[#This Row],[STIMATI]]-TBL_FioriDecorazioni[[#This Row],[EFFETTIVI]]) -> 
B33: TOTALE FIORI E DECORAZIONI | C33: =SUBTOTAL(109,TBL_FioriDecorazioni[STIMATI]) -> € 3,000.00 | D33: =SUBTOTAL(109,TBL_FioriDecorazioni[EFFETTIVI]) -> € 0.00 | E33: =TBL_FioriDecorazioni[[#Totals],[STIMATI]]-TBL_FioriDecorazioni[[#Totals],[EFFETTIVI]] -> € 3,000.00
B36: MUSICA | C36: STIMATI | D36: EFFETTIVI | E36: VARIANZA
B37: Musicisti per la cerimonia | C37: € 700.00 | E37: =IF(OR(TBL_Musica[[#This Row],[STIMATI]]="",TBL_Musica[[#This Row],[EFFETTIVI]]=""),"",TBL_Musica[[#This Row],[STIMATI]]-TBL_Musica[[#This Row],[EFFETTIVI]]) -> 
B38: Musicisti per il cocktail | C38: € 300.00 | E38: =IF(OR(TBL_Musica[[#This Row],[STIMATI]]="",TBL_Musica[[#This Row],[EFFETTIVI]]=""),"",TBL_Musica[[#This Row],[STIMATI]]-TBL_Musica[[#This Row],[EFFETTIVI]]) -> 
B39: Gruppo musicale per il ricevimento nuziale, deejay o intrattenimento | C39: € 200.00 | E39: =IF(OR(TBL_Musica[[#This Row],[STIMATI]]="",TBL_Musica[[#This Row],[EFFETTIVI]]=""),"",TBL_Musica[[#This Row],[STIMATI]]-TBL_Musica[[#This Row],[EFFETTIVI]]) -> 
B40: Noleggio di impianto audio o pista da ballo | C40: € 400.00 | E40: =IF(OR(TBL_Musica[[#This Row],[STIMATI]]="",TBL_Musica[[#This Row],[EFFETTIVI]]=""),"",TBL_Musica[[#This Row],[STIMATI]]-TBL_Musica[[#This Row],[EFFETTIVI]]) -> 
B41: Spese varie | C41: € 200.00 | E41: =IF(OR(TBL_Musica[[#This Row],[STIMATI]]="",TBL_Musica[[#This Row],[EFFETTIVI]]=""),"",TBL_Musica[[#This Row],[STIMATI]]-TBL_Musica[[#This Row],[EFFETTIVI]]) -> 
B42: TOTALE MUSICA | C42: =SUBTOTAL(109,TBL_Musica[STIMATI]) -> € 1,800.00 | D42: =SUBTOTAL(109,TBL_Musica[EFFETTIVI]) -> € 0.00 | E42: =TBL_Musica[[#Totals],[STIMATI]]-TBL_Musica[[#Totals],[EFFETTIVI]] -> € 1,800.00
B45: FOTOGRAFIE E VIDEO | C45: STIMATI | D45: EFFETTIVI | E45: VARIANZA
B46: Fotografie | C46: € 1,000.00 | E46: =IF(OR(TBL_FotografieVideo[[#This Row],[STIMATI]]="",TBL_FotografieVideo[[#This Row],[EFFETTIVI]]=""),"",TBL_FotografieVideo[[#This Row],[STIMATI]]-TBL_FotografieVideo[[#This Row],[EFFETTIVI]]) -> 
B47: Servizi video | C47: € 800.00 | E47: =IF(OR(TBL_FotografieVideo[[#This Row],[STIMATI]]="",TBL_FotografieVideo[[#This Row],[EFFETTIVI]]=""),"",TBL_FotografieVideo[[#This Row],[STIMATI]]-TBL_FotografieVideo[[#This Row],[EFFETTIVI]]) -> 
B48: Stampe e album aggiuntivi | C48: € 500.00 | E48: =IF(OR(TBL_FotografieVideo[[#This Row],[STIMATI]]="",TBL_FotografieVideo[[#This Row],[EFFETTIVI]]=""),"",TBL_FotografieVideo[[#This Row],[STIMATI]]-TBL_FotografieVideo[[#This Row],[EFFETTIVI]]) -> 
B49: Spese varie | C49: € 200.00 | E49: =IF(OR(TBL_FotografieVideo[[#This Row],[STIMATI]]="",TBL_FotografieVideo[[#This Row],[EFFETTIVI]]=""),"",TBL_FotografieVideo[[#This Row],[STIMATI]]-TBL_FotografieVideo[[#This Row],[EFFETTIVI]]) -> 
B50: TOTALE FOTO E VIDEO | C50: =SUBTOTAL(109,TBL_FotografieVideo[STIMATI]) -> € 2,500.00 | D50: =SUBTOTAL(109,TBL_FotografieVideo[EFFETTIVI]) -> € 0.00 | E50: =TBL_FotografieVideo[[#Totals],[STIMATI]]-TBL_FotografieVideo[[#Totals],[EFFETTIVI]] -> € 2,500.00
B53: BOMBONIERE E REGALI | C53: STIMATI | D53: EFFETTIVI | E53: VARIANZA
B54: Regali di benvenuto | C54: € 700.00 | E54: =IF(OR(TBL_BomboniereRegali[[#This Row],[STIMATI]]="",TBL_BomboniereRegali[[#This Row],[EFFETTIVI]]=""),"",TBL_BomboniereRegali[[#This Row],[STIMATI]]-TBL_BomboniereRegali[[#This Row],[EFFETTIVI]]) -> 
B55: Regali per la festa | C55: € 200.00 | E55: =IF(OR(TBL_BomboniereRegali[[#This Row],[STIMATI]]="",TBL_BomboniereRegali[[#This Row],[EFFETTIVI]]=""),"",TBL_BomboniereRegali[[#This Row],[STIMATI]]-TBL_BomboniereRegali[[#This Row],[EFFETTIVI]]) -> 
B56: Spese varie | C56: € 200.00 | E56: =IF(OR(TBL_BomboniereRegali[[#This Row],[STIMATI]]="",TBL_BomboniereRegali[[#This Row],[EFFETTIVI]]=""),"",TBL_BomboniereRegali[[#This Row],[STIMATI]]-TBL_BomboniereRegali[[#This Row],[EFFETTIVI]]) -> 
B57: TOTALE BOMBONIERE E REGALI | C57: =SUBTOTAL(109,TBL_BomboniereRegali[STIMATI]) -> € 1,100.00 | D57: =SUBTOTAL(109,TBL_BomboniereRegali[EFFETTIVI]) -> € 0.00 | E57: =TBL_BomboniereRegali[[#Totals],[STIMATI]]-TBL_BomboniereRegali[[#Totals],[EFFETTIVI]] -> € 1,100.00
B60: CERIMONIA | C60: STIMATI | D60: EFFETTIVI | E60: VARIANZA
B61: Costo del sito | C61: € 500.00 | E61: =IF(OR(TBL_Cerimonia[[#This Row],[STIMATI]]="",TBL_Cerimonia[[#This Row],[EFFETTIVI]]=""),"",TBL_Cerimonia[[#This Row],[STIMATI]]-TBL_Cerimonia[[#This Row],[EFFETTIVI]]) -> 
B62: Costo dell’officiante e donazione alla Chiesa | C62: € 200.00 | E62: =IF(OR(TBL_Cerimonia[[#This Row],[STIMATI]]="",TBL_Cerimonia[[#This Row],[EFFETTIVI]]=""),"",TBL_Cerimonia[[#This Row],[STIMATI]]-TBL_Cerimonia[[#This Row],[EFFETTIVI]]) -> 
B63: Spese varie | C63: € 100.00 | E63: =IF(OR(TBL_Cerimonia[[#This Row],[STIMATI]]="",TBL_Cerimonia[[#This Row],[EFFETTIVI]]=""),"",TBL_Cerimonia[[#This Row],[STIMATI]]-TBL_Cerimonia[[#This Row],[EFFETTIVI]]) -> 
B64: TOTALE CERIMONIA | C64: =SUBTOTAL(109,TBL_Cerimonia[STIMATI]) -> € 800.00 | D64: =SUBTOTAL(109,TBL_Cerimonia[EFFETTIVI]) -> € 0.00 | E64: =TBL_Cerimonia[[#Totals],[STIMATI]]-TBL_Cerimonia[[#Totals],[EFFETTIVI]] -> € 800.00
B67: CANCELLERIA | C67: STIMATI | D67: EFFETTIVI | E67: VARIANZA
B68: Partecipazioni | C68: € 50.00 | E68: =IF(OR(TBL_Elementi_decorativi[[#This Row],[STIMATI]]="",TBL_Elementi_decorativi[[#This Row],[EFFETTIVI]]=""),"",TBL_Elementi_decorativi[[#This Row],[STIMATI]]-TBL_Elementi_decorativi[[#This Row],[EFFETTIVI]]) -> 
B69: Inviti e conferme | C69: € 100.00 | E69: =IF(OR(TBL_Elementi_decorativi[[#This Row],[STIMATI]]="",TBL_Elementi_decorativi[[#This Row],[EFFETTIVI]]=""),"",TBL_Elementi_decorativi[[#This Row],[STIMATI]]-TBL_Elementi_decorativi[[#This Row],[EFFETTIVI]]) -> 
B70: Programmi | C70: € 50.00 | E70: =IF(OR(TBL_Elementi_decorativi[[#This Row],[STIMATI]]="",TBL_Elementi_decorativi[[#This Row],[EFFETTIVI]]=""),"",TBL_Elementi_decorativi[[#This Row],[STIMATI]]-TBL_Elementi_decorativi[[#This Row],[EFFETTIVI]]) -> 
B71: Posti a sedere e segnaposto | C71: € 50.00 | E71: =IF(OR(TBL_Elementi_decorativi[[#This Row],[STIMATI]]="",TBL_Elementi_decorativi[[#This Row],[EFFETTIVI]]=""),"",TBL_Elementi_decorativi[[#This Row],[STIMATI]]-TBL_Elementi_decorativi[[#This Row],[EFFETTIVI]]) -> 
B72: Schede menu | C72: € 50.00 | E72: =IF(OR(TBL_Elementi_decorativi[[#This Row],[STIMATI]]="",TBL_Elementi_decorativi[[#This Row],[EFFETTIVI]]=""),"",TBL_Elementi_decorativi[[#This Row],[STIMATI]]-TBL_Elementi_decorativi[[#This Row],[EFFETTIVI]]) -> 
B73: Biglietti di ringraziamento | C73: € 50.00 | E73: =IF(OR(TBL_Elementi_decorativi[[#This Row],[STIMATI]]="",TBL_Elementi_decorativi[[#This Row],[EFFETTIVI]]=""),"",TBL_Elementi_decorativi[[#This Row],[STIMATI]]-TBL_Elementi_decorativi[[#This Row],[EFFETTIVI]]) -> 
B74: Affrancatura | C74: € 50.00 | E74: =IF(OR(TBL_Elementi_decorativi[[#This Row],[STIMATI]]="",TBL_Elementi_decorativi[[#This Row],[EFFETTIVI]]=""),"",TBL_Elementi_decorativi[[#This Row],[STIMATI]]-TBL_Elementi_decorativi[[#This Row],[EFFETTIVI]]) -> 
B75: Spese varie | C75: € 100.00 | E75: =IF(OR(TBL_Elementi_decorativi[[#This Row],[STIMATI]]="",TBL_Elementi_decorativi[[#This Row],[EFFETTIVI]]=""),"",TBL_Elementi_decorativi[[#This Row],[STIMATI]]-TBL_Elementi_decorativi[[#This Row],[EFFETTIVI]]) -> 
B76: TOTALE CANCELLERIA | C76: =SUBTOTAL(109,TBL_Elementi_decorativi[STIMATI]) -> € 500.00 | D76: =SUBTOTAL(109,TBL_Elementi_decorativi[EFFETTIVI]) -> € 0.00 | E76: =TBL_Elementi_decorativi[[#Totals],[STIMATI]]-TBL_Elementi_decorativi[[#Totals],[EFFETTIVI]] -> € 500.00
B79: FEDI NUZIALI | C79: STIMATI | D79: EFFETTIVI | E79: VARIANZA
B80: Fedi nuziali | C80: € 1,000.00 | E80: =IF(OR(TBL_FediNuziali[[#This Row],[STIMATI]]="",TBL_FediNuziali[[#This Row],[EFFETTIVI]]=""),"",TBL_FediNuziali[[#This Row],[STIMATI]]-TBL_FediNuziali[[#This Row],[EFFETTIVI]]) -> 
B81: Accessori per fedi | C81: € 100.00 | E81: =IF(OR(TBL_FediNuziali[[#This Row],[STIMATI]]="",TBL_FediNuziali[[#This Row],[EFFETTIVI]]=""),"",TBL_FediNuziali[[#This Row],[STIMATI]]-TBL_FediNuziali[[#This Row],[EFFETTIVI]]) -> 
B82: TOTALE FEDI NUZIALI | C82: =SUBTOTAL(109,TBL_FediNuziali[STIMATI]) -> € 1,100.00 | D82: =SUBTOTAL(109,TBL_FediNuziali[EFFETTIVI]) -> € 0.00 | E82: =TBL_FediNuziali[[#Totals],[STIMATI]]-TBL_FediNuziali[[#Totals],[EFFETTIVI]] -> € 1,100.00
B85: TRASPORTI | C85: STIMATI | D85: EFFETTIVI | E85: VARIANZA
B86: Noleggio auto principale | C86: € 100.00 | E86: =IF(OR(TBL_Trasporti[[#This Row],[STIMATI]]="",TBL_Trasporti[[#This Row],[EFFETTIVI]]=""),"",TBL_Trasporti[[#This Row],[STIMATI]]-TBL_Trasporti[[#This Row],[EFFETTIVI]]) -> 
B87: Noleggio auto ospiti | C87: € 100.00 | E87: =IF(OR(TBL_Trasporti[[#This Row],[STIMATI]]="",TBL_Trasporti[[#This Row],[EFFETTIVI]]=""),"",TBL_Trasporti[[#This Row],[STIMATI]]-TBL_Trasporti[[#This Row],[EFFETTIVI]]) -> 
B88: Trasporti per ospiti che vivono in altre città | C88: € 100.00 | E88: =IF(OR(TBL_Trasporti[[#This Row],[STIMATI]]="",TBL_Trasporti[[#This Row],[EFFETTIVI]]=""),"",TBL_Trasporti[[#This Row],[STIMATI]]-TBL_Trasporti[[#This Row],[EFFETTIVI]]) -> 
B89: Servizio di parcheggio | C89: € 50.00 | E89: =IF(OR(TBL_Trasporti[[#This Row],[STIMATI]]="",TBL_Trasporti[[#This Row],[EFFETTIVI]]=""),"",TBL_Trasporti[[#This Row],[STIMATI]]-TBL_Trasporti[[#This Row],[EFFETTIVI]]) -> 
B90: Spese varie | C90: € 100.00 | E90: =IF(OR(TBL_Trasporti[[#This Row],[STIMATI]]="",TBL_Trasporti[[#This Row],[EFFETTIVI]]=""),"",TBL_Trasporti[[#This Row],[STIMATI]]-TBL_Trasporti[[#This Row],[EFFETTIVI]]) -> 
B91: TOTALE TRASPORTI | C91: =SUBTOTAL(109,TBL_Trasporti[STIMATI]) -> € 450.00 | D91: =SUBTOTAL(109,TBL_Trasporti[EFFETTIVI]) -> € 0.00 | E91: =TBL_Trasporti[[#Totals],[STIMATI]]-TBL_Trasporti[[#Totals],[EFFETTIVI]] -> € 450.00
